fUST/lending_fUST_20250713
["ID","MTS","AMOUNT","RATE_DAILY","PERIOD"]
[371531238,1752339061666,-5000.0,0.00019178,2]
[371531240,1752339061676,-5000.0,0.00019178,2]
[371531242,1752339061686,-5000.0,0.00019178,2]
[371531244,1752339061695,-2010.35104184,0.00019178,2]
[371531246,1752339061704,-666.0,0.00019178,2]
[371531248,1752339061714,-48154.9889144,0.00019178,2]
[371531250,1752339061723,-27885.29,0.000192,2]
[371531252,1752339061732,-4162.17,0.000192,2]
[371531254,1752339061742,-151.85317382,0.00019205,2]
[371531255,1752339061751,-151.0,0.00019205,2]
[371531257,1752339061761,-151.0,0.00019233,2]
[371531259,1752339061771,-199.04772792,0.0001926,2]
[371531261,1752339061780,-303.50376891,0.00019278,2]
[371531263,1752339061790,-100000.0,0.00019329,2]
[371531265,1752339061800,-2034.99919285,0.00019348,2]
[371531267,1752339061810,-468.36,0.00019452,2]
[371531269,1752339061819,-460.0,0.00019452,2]
[371531271,1752339061829,-460.0,0.00019452,2]
[371531273,1752339061838,-460.0,0.00019452,2]
[371531275,1752339061848,-460.0,0.00019452,2]
[371531277,1752339061857,-460.0,0.00019452,2]
[371531279,1752339061867,-460.0,0.00019452,2]
[371531281,1752339061877,-460.0,0.00019452,2]
[371531283,1752339061887,-460.0,0.00019452,2]
[371531285,1752339061896,-550.87,0.00019452,2]
[371531287,1752339061905,-460.0,0.00019452,2]
[371531289,1752339061914,-460.0,0.00019452,2]
[371531291,1752339061924,-646.89,0.00019452,2]
[371531293,1752339061932,-460.0,0.00019452,2]
[371531295,1752339061942,-573.66,0.00019452,2]
[371531297,1752339061951,-179.32731101,0.00019452,2]
[371531299,1752339061961,-228.54568651,0.00019452,2]
[371531301,1752339061970,-460.0,0.00019452,2]
[371531302,1752339061979,-635.22,0.00019452,2]
[371531304,1752339061988,-460.0,0.00019452,2]
[371531306,1752339061997,-460.0,0.00019452,2]
[371531308,1752339062007,-460.0,0.00019452,2]
[371531310,1752339062016,-460.0,0.00019452,2]
[371531312,1752339062026,-460.0,0.00019452,2]
[371531314,1752339062035,-623.67,0.00019452,2]
[371531316,1752339062045,-5412.1,0.00019452,2]
[371531318,1752339062055,-460.0,0.00019452,2]
[371531320,1752339062064,-460.0,0.00019452,2]
[371531322,1752339062074,-683.41,0.00019452,2]
[371531324,1752339062083,-460.0,0.00019452,2]
[371531326,1752339062093,-1187.86,0.00019452,2]
[371531328,1752339062102,-350.45015773,0.00019452,2]
[371531329,1752339062112,-460.0,0.00019452,2]
[371531332,1752339062122,-460.0,0.00019452,2]
[371531333,1752339062132,-1123.48,0.00019452,2]
[371531335,1752339062142,-2621.56,0.00019452,2]
[371531337,1752339062151,-460.0,0.00019452,2]
[371531339,1752339062160,-682.03,0.00019452,2]
[371531341,1752339062170,-1297.92,0.00019452,2]
[371531343,1752339062180,-460.0,0.00019452,2]
[371531345,1752339062190,-1030.17,0.00019452,2]
[371531347,1752339062200,-460.0,0.00019452,2]
[371531349,1752339062210,-460.0,0.00019452,2]
[371531351,1752339062219,-460.0,0.00019452,2]
[371531353,1752339062228,-1957.07,0.00019452,2]
[371531355,1752339062239,-1236.38,0.00019452,2]
[371531357,1752339062248,-463.53,0.00019452,2]
[371531359,1752339062258,-569.09,0.00019452,2]
[371531361,1752339062269,-460.0,0.00019452,2]
[371531363,1752339062278,-539.54,0.00019452,2]
[371531365,1752339062287,-461.54,0.00019452,2]
[371531366,1752339062297,-460.0,0.00019452,2]
[371531368,1752339062306,-460.0,0.00019452,2]
[371531370,1752339062315,-460.0,0.00019452,2]
[371531372,1752339062325,-460.0,0.00019452,2]
[371531374,1752339062334,-460.0,0.00019452,2]
[371531376,1752339062345,-460.0,0.00019452,2]
[371531378,1752339062355,-594.72,0.00019452,2]
[371531380,1752339062364,-460.0,0.00019452,2]
[371531382,1752339062373,-1010.33,0.00019452,2]
[371531384,1752339062383,-460.0,0.00019452,2]
[371531386,1752339062392,-460.0,0.00019452,2]
[371531388,1752339062402,-2088.38,0.00019452,2]
[371531390,1752339062411,-2151.05,0.00019452,2]
[371531392,1752339062420,-460.0,0.00019452,2]
[371531393,1752339062429,-460.0,0.00019452,2]
[371531395,1752339062439,-3488.55,0.00019452,2]
[371531397,1752339062448,-460.0,0.00019452,2]
[371531399,1752339062457,-2850.9,0.00019452,2]
[371531401,1752339062466,-538.24,0.00019452,2]
[371531403,1752339062476,-460.0,0.00019452,2]
[371531405,1752339062485,-658.41,0.00019452,2]
[371531407,1752339062495,-460.0,0.00019452,2]
[371531409,1752339062505,-460.0,0.00019452,2]
[371531411,1752339062515,-460.0,0.00019452,2]
[371531413,1752339062526,-849.11,0.00019452,2]
[371531415,1752339062535,-460.0,0.00019452,2]
[371531417,1752339062546,-187.1,0.00019452,2]
[371531419,1752339062554,-460.0,0.00019452,2]
[371531421,1752339062564,-460.0,0.00019452,2]
[371531423,1752339062574,-1149.94,0.00019452,2]
[371531425,1752339062583,-460.0,0.00019452,2]
[371531427,1752339062592,-303.50376891,0.00019467,2]
[371531429,1752339062602,-2500.0,0.00019496,2]
[371531431,1752339062611,-1000.0,0.00019496,2]
[371531433,1752339062621,-2500.0,0.00019515,2]
[371531435,1752339062630,-2500.0,0.00019515,2]
[371531437,1752339062640,-2034.99919285,0.0001959,2]
[371531438,1752339062649,-587.0,0.00019631,2]
[371531440,1752339062661,-5000.0,0.00019647,2]
[371531442,1752339062671,-455.15078251,0.00019656,2]
[371531444,1752339062680,-468.36,0.00019726,2]
[371531446,1752339062690,-460.0,0.00019726,2]
[371531448,1752339062699,-460.0,0.00019726,2]
[371531450,1752339062709,-460.0,0.00019726,2]
[371531452,1752339062718,-460.0,0.00019726,2]
[371531454,1752339062728,-460.0,0.00019726,2]
[371531456,1752339062740,-460.0,0.00019726,2]
[371531458,1752339062750,-460.0,0.00019726,2]
[371531460,1752339062760,-460.0,0.00019726,2]
[371531462,1752339062770,-550.87,0.00019726,2]
[371531464,1752339062779,-460.0,0.00019726,2]
[371531466,1752339062789,-460.0,0.00019726,2]
[371531468,1752339062799,-646.89,0.00019726,2]
[371531470,1752339062808,-460.0,0.00019726,2]
[371531472,1752339062817,-573.66,0.00019726,2]
[371531474,1752339062827,-460.0,0.00019726,2]
[371531476,1752339062837,-635.22,0.00019726,2]
[371531478,1752339062846,-460.0,0.00019726,2]
[371531480,1752339062855,-460.0,0.00019726,2]
[371531482,1752339062864,-460.0,0.00019726,2]
[371531484,1752339062873,-460.0,0.00019726,2]
[371531486,1752339062882,-623.67,0.00019726,2]
[371531488,1752339062892,-5412.1,0.00019726,2]
[371531490,1752339062901,-683.41,0.00019726,2]
[371531492,1752339062910,-460.0,0.00019726,2]
[371531494,1752339062919,-1187.86,0.00019726,2]
[371531496,1752339062929,-460.0,0.00019726,2]
[371531497,1752339062938,-460.0,0.00019726,2]
[371531499,1752339062952,-1123.48,0.00019726,2]
[371531501,1752339062962,-2621.56,0.00019726,2]
[371531503,1752339062974,-682.03,0.00019726,2]
[371531505,1752339062983,-1297.92,0.00019726,2]
[371531507,1752339062993,-460.0,0.00019726,2]
[371531509,1752339063002,-1030.17,0.00019726,2]
[371531511,1752339063012,-460.0,0.00019726,2]
[371531513,1752339063023,-460.0,0.00019726,2]
[371531515,1752339063033,-1957.07,0.00019726,2]
[371531517,1752339063042,-1236.38,0.00019726,2]
[371531519,1752339063051,-463.53,0.00019726,2]
[371531521,1752339063062,-569.09,0.00019726,2]
[371531523,1752339063072,-460.0,0.00019726,2]
[371531525,1752339063082,-539.54,0.00019726,2]
[371531527,1752339063091,-461.54,0.00019726,2]
[371531529,1752339063100,-460.0,0.00019726,2]
[371531531,1752339063109,-460.0,0.00019726,2]
[371531532,1752339063119,-460.0,0.00019726,2]
[371531534,1752339063129,-520.33762507,0.00019726,2]
[371531536,1752339063138,-460.0,0.00019726,2]
[371531538,1752339063147,-460.0,0.00019726,2]
[371531540,1752339063157,-594.72,0.00019726,2]
[371531542,1752339063167,-460.0,0.00019726,2]
[371531544,1752339063176,-1010.33,0.00019726,2]
[371531546,1752339063186,-460.0,0.00019726,2]
[371531548,1752339063195,-460.0,0.00019726,2]
[371531550,1752339063204,-2088.38,0.00019726,2]
[371531552,1752339063213,-2151.05,0.00019726,2]
[371531554,1752339063222,-460.0,0.00019726,2]
[371531555,1752339063231,-460.0,0.00019726,2]
[371531557,1752339063240,-3488.55,0.00019726,2]
[371531558,1752339063250,-460.0,0.00019726,2]
[371531559,1752339063261,-2850.9,0.00019726,2]
[371531560,1752339063271,-538.24,0.00019726,2]
[371531561,1752339063281,-460.0,0.00019726,2]
[371531562,1752339063291,-658.41,0.00019726,2]
[371531563,1752339063301,-460.0,0.00019726,2]
[371531564,1752339063311,-460.0,0.00019726,2]
[371531565,1752339063321,-460.0,0.00019726,2]
[371531566,1752339063443,-849.11,0.00019726,2]
[371531567,1752339063453,-460.0,0.00019726,2]
[371531568,1752339063462,-460.0,0.00019726,2]
[371531570,1752339063472,-460.0,0.00019726,2]
[371531572,1752339063482,-1149.94,0.00019726,2]
[371531574,1752339063494,-460.0,0.00019726,2]
[371531576,1752339063511,-2034.99919285,0.00019831,2]
[371531578,1752339063520,-292.76,0.00019847,2]
[371531580,1752339063529,-207.4,0.00019899,2]
[371531582,1752339063539,-151.0,0.00019899,2]
[371531584,1752339063549,-151.0,0.00019899,2]
[371531586,1752339063559,-151.0,0.00019899,2]
[371531588,1752339063568,-151.0,0.00019899,2]
[371531590,1752339063578,-151.0,0.00019899,2]
[371531592,1752339063588,-151.0,0.00019899,2]
[371531594,1752339063597,-151.0,0.00019899,2]
[371531596,1752339063606,-151.0,0.00019899,2]
[371531598,1752339063615,-151.0,0.00019899,2]
[371531600,1752339063625,-151.0,0.00019899,2]
[371531602,1752339063633,-151.0,0.00019899,2]
[371531604,1752339063643,-151.0,0.00019899,2]
[371531606,1752339063652,-151.0,0.00019899,2]
[371531608,1752339063666,-151.0,0.00019899,2]
[371531610,1752339063676,-151.0,0.00019899,2]
[371531612,1752339063685,-165.0,0.00019899,2]
[371531614,1752339063696,-151.0,0.00019899,2]
[371531616,1752339063705,-621.13190756,0.000199,2]
[371531618,1752339063715,-468.36,0.0002,2]
[371531620,1752339063724,-90258.0,0.0002,2]
[371531622,1752339063735,-460.0,0.0002,2]
[371531624,1752339063745,-460.0,0.0002,2]
[371531626,1752339063755,-262.3709629,0.0002,2]
[371531628,1752339063764,-460.0,0.0002,2]
[371531630,1752339063775,-460.0,0.0002,2]
[371531632,1752339063784,-460.0,0.0002,2]
[371531634,1752339063794,-460.0,0.0002,2]
[371531636,1752339063803,-460.0,0.0002,2]
[371531638,1752339063813,-550.87,0.0002,2]
[371531640,1752339063823,-460.0,0.0002,2]
[371531642,1752339063832,-460.0,0.0002,2]
[371531644,1752339063842,-646.89,0.0002,2]
[371531646,1752339063851,-573.66,0.0002,2]
[371531648,1752339063863,-460.0,0.0002,2]
[371531650,1752339063874,-635.22,0.0002,2]
[371531652,1752339063884,-460.0,0.0002,2]
[371531654,1752339063894,-460.0,0.0002,2]
[371531656,1752339063903,-232.13,0.0002,2]
[371531658,1752339063912,-460.0,0.0002,2]
[371531660,1752339063921,-623.67,0.0002,2]
[371531662,1752339063931,-5412.1,0.0002,2]
[371531664,1752339063940,-683.41,0.0002,2]
[371531666,1752339063950,-460.0,0.0002,2]
[371531668,1752339063961,-1187.86,0.0002,2]
[371531670,1752339063970,-460.0,0.0002,2]
[371531672,1752339063981,-460.0,0.0002,2]
[371531674,1752339063991,-1123.48,0.0002,2]
[371531676,1752339064002,-2621.56,0.0002,2]
[371531678,1752339064012,-682.03,0.0002,2]
[371531680,1752339064024,-1297.92,0.0002,2]
[371531682,1752339064034,-604.82,0.0002,2]
[371531684,1752339064044,-1030.17,0.0002,2]
[371531686,1752339064053,-460.0,0.0002,2]
[371531688,1752339064063,-460.0,0.0002,2]
[371531690,1752339064074,-1957.07,0.0002,2]
[371531692,1752339064084,-1236.38,0.0002,2]
[371531694,1752339064094,-463.53,0.0002,2]
[371531696,1752339064104,-569.09,0.0002,2]
[371531698,1752339064113,-460.0,0.0002,2]
[371531700,1752339064124,-539.54,0.0002,2]
[371531702,1752339064133,-460.0,0.0002,2]
[371531704,1752339064143,-461.54,0.0002,2]
[371531706,1752339064154,-460.0,0.0002,2]
[371531709,1752339064165,-460.0,0.0002,2]
[371531710,1752339064176,-460.0,0.0002,2]
[371531712,1752339064186,-594.72,0.0002,2]
[371531714,1752339064196,-460.0,0.0002,2]
[371531717,1752339064208,-1010.33,0.0002,2]
[371531719,1752339064218,-460.0,0.0002,2]
[371531721,1752339064228,-460.0,0.0002,2]
[371531723,1752339064238,-2088.38,0.0002,2]
[371531725,1752339064249,-2151.05,0.0002,2]
[371531727,1752339064259,-460.0,0.0002,2]
[371531729,1752339064269,-460.0,0.0002,2]
[371531731,1752339064279,-3488.55,0.0002,2]
[371531733,1752339064289,-460.0,0.0002,2]
[371531735,1752339064299,-2850.9,0.0002,2]
[371531737,1752339064309,-538.24,0.0002,2]
[371531739,1752339064318,-460.0,0.0002,2]
[371531741,1752339064328,-658.41,0.0002,2]
[371531743,1752339064337,-460.0,0.0002,2]
[371531745,1752339064347,-460.0,0.0002,2]
[371531747,1752339064358,-460.0,0.0002,2]
[371531749,1752339064368,-849.11,0.0002,2]
[371531751,1752339064377,-460.0,0.0002,2]
[371531753,1752339064387,-460.0,0.0002,2]
[371531755,1752339064397,-1149.94,0.0002,2]
[371531757,1752339064406,-460.0,0.0002,2]
[371531759,1752339064416,-1626.11862193,0.00020044,2]
[371531761,1752339064426,-500.0,0.00020063,2]
[371531763,1752339064436,-2034.99919285,0.00020072,2]
[371531765,1752339064445,-2118.74119043,0.00020173,2]
[371531767,1752339064454,-468.36,0.00020273,2]
[371531769,1752339064464,-460.0,0.00020273,2]
[371531771,1752339064474,-460.0,0.00020273,2]
[371531773,1752339064484,-416.5044503,0.00020273,2]
[371531775,1752339064494,-583.59788471,0.00020273,2]
[371531777,1752339064503,-460.0,0.00020273,2]
[371531779,1752339064512,-460.0,0.00020273,2]
[371531781,1752339064523,-460.0,0.00020273,2]
[371531783,1752339064532,-550.87,0.00020273,2]
[371531785,1752339064542,-600.55,0.00020273,2]
[371531787,1752339064551,-524.06,0.00020273,2]
[371531789,1752339064561,-646.89,0.00020273,2]
[371531791,1752339064571,-573.66,0.00020273,2]
[371531793,1752339064581,-460.0,0.00020273,2]
[371531795,1752339064591,-635.22,0.00020273,2]
[371531797,1752339064600,-460.0,0.00020273,2]
[371531799,1752339064610,-460.0,0.00020273,2]
[371531801,1752339064619,-460.0,0.00020273,2]
[371531803,1752339064629,-623.67,0.00020273,2]
[371531805,1752339064638,-5412.1,0.00020273,2]
[371531807,1752339064648,-683.41,0.00020273,2]
[371531809,1752339064658,-460.0,0.00020273,2]
[371531811,1752339064671,-1187.86,0.00020273,2]
[371531813,1752339064680,-460.0,0.00020273,2]
[371531815,1752339064690,-356.52,0.00020273,2]
[371531817,1752339064700,-1123.48,0.00020273,2]
[371531819,1752339064709,-2621.56,0.00020273,2]
[371531821,1752339064720,-682.03,0.00020273,2]
[371531823,1752339064730,-1297.92,0.00020273,2]
[371531825,1752339064741,-1030.17,0.00020273,2]
[371531827,1752339064751,-460.0,0.00020273,2]
[371531829,1752339064761,-460.0,0.00020273,2]
[371531831,1752339064772,-1957.07,0.00020273,2]
[371531833,1752339064781,-1236.38,0.00020273,2]
[371531835,1752339064791,-463.53,0.00020273,2]
[371531837,1752339064801,-569.09,0.00020273,2]
[371531839,1752339064811,-460.0,0.00020273,2]
[371531841,1752339064820,-539.54,0.00020273,2]
[371531843,1752339064829,-461.54,0.00020273,2]
[371531845,1752339064838,-460.0,0.00020273,2]
[371531847,1752339064847,-460.0,0.00020273,2]
[371531849,1752339064856,-594.72,0.00020273,2]
[371531851,1752339064867,-1010.33,0.00020273,2]
[371531853,1752339064877,-460.0,0.00020273,2]
[371531855,1752339064886,-460.0,0.00020273,2]
[371531857,1752339064895,-2088.38,0.00020273,2]
[371531858,1752339064904,-2151.05,0.00020273,2]
[371531861,1752339064914,-460.0,0.00020273,2]
[371531862,1752339064924,-460.0,0.00020273,2]
[371531864,1752339064933,-3488.55,0.00020273,2]
[371531867,1752339064944,-522.63704269,0.00020273,2]
[371531869,1752339064953,-151.0,0.00020273,2]
[371531871,1752339064964,-2850.9,0.00020273,2]
[371531873,1752339064974,-538.24,0.00020273,2]
[371531875,1752339064983,-658.41,0.00020273,2]
[371531877,1752339064993,-460.0,0.00020273,2]
[371531879,1752339065003,-460.0,0.00020273,2]
[371531881,1752339065012,-460.0,0.00020273,2]
[371531883,1752339065022,-460.0,0.00020273,2]
[371531885,1752339065031,-849.11,0.00020273,2]
[371531887,1752339065040,-151.0,0.00020273,2]
[371531889,1752339065050,-460.0,0.00020273,2]
[371531891,1752339065059,-460.0,0.00020273,2]
[371531893,1752339065068,-151.0,0.00020273,2]
[371531895,1752339065078,-1149.94,0.00020273,2]
[371531897,1752339065087,-460.0,0.00020273,2]
[371531899,1752339065097,-741.754,0.00020283,2]
[371531901,1752339065106,-178.092,0.00020283,2]
[371531903,1752339065116,-2034.99919285,0.00020314,3]
[371531905,1752339065126,-501.36560506,0.00020324,2]
[371531907,1752339065135,-500.0,0.00020324,2]
[371531909,1752339065145,-258.0,0.00020354,2]
[371531911,1752339065154,-500.0,0.00020354,2]
[371531913,1752339065164,-500.0,0.00020354,2]
[371531915,1752339065173,-500.0,0.00020354,2]
[371531917,1752339065183,-500.0,0.00020354,2]
[371531919,1752339065193,-500.0,0.00020354,2]
[371531921,1752339065202,-468.36,0.00020547,2]
[371531923,1752339065211,-460.0,0.00020547,2]
[371531925,1752339065221,-460.0,0.00020547,2]
[371531927,1752339065231,-500.08560201,0.00020547,2]
[371531929,1752339065240,-460.0,0.00020547,2]
[371531931,1752339065249,-550.87,0.00020547,2]
[371531933,1752339065258,-646.89,0.00020547,2]
[371531935,1752339065267,-573.66,0.00020547,2]
[371531937,1752339065278,-635.22,0.00020547,2]
[371531939,1752339065287,-460.0,0.00020547,2]
[371531941,1752339065297,-460.0,0.00020547,2]
[371531943,1752339065306,-224.51,0.00020547,2]
[371531945,1752339065316,-623.67,0.00020547,2]
[371531947,1752339065325,-5412.1,0.00020547,2]
[371531949,1752339065334,-683.41,0.00020547,2]
[371531951,1752339065343,-460.0,0.00020547,2]
[371531953,1752339065352,-1187.86,0.00020547,2]
[371531955,1752339065362,-460.0,0.00020547,2]
[371531957,1752339065371,-1123.48,0.00020547,2]
[371531959,1752339065380,-2621.56,0.00020547,2]
[371531961,1752339065390,-682.03,0.00020547,2]
[371531963,1752339065399,-1297.92,0.00020547,2]
[371531965,1752339065409,-1030.17,0.00020547,2]
[371531966,1752339065418,-460.0,0.00020547,2]
[371531969,1752339065428,-460.0,0.00020547,2]
[371531971,1752339065437,-1957.07,0.00020547,2]
[371531972,1752339065446,-1236.38,0.00020547,2]
[371531975,1752339065456,-463.53,0.00020547,2]
[371531977,1752339065465,-569.09,0.00020547,2]
[371531979,1752339065474,-460.0,0.00020547,2]
[371531980,1752339065484,-539.54,0.00020547,2]
[371531982,1752339065493,-461.54,0.00020547,2]
[371531984,1752339065503,-460.0,0.00020547,2]
[371531986,1752339065512,-460.0,0.00020547,2]
[371531988,1752339065521,-594.72,0.00020547,2]
[371531990,1752339065531,-1010.33,0.00020547,2]
[371531993,1752339065540,-460.0,0.00020547,2]
[371531994,1752339065550,-460.0,0.00020547,2]
[371531997,1752339065560,-2088.38,0.00020547,2]
[371531999,1752339065569,-2151.05,0.00020547,2]
[371532000,1752339065578,-460.0,0.00020547,2]
[371532002,1752339065588,-460.0,0.00020547,2]
[371532004,1752339065597,-3488.55,0.00020547,2]
[371532006,1752339065607,-2850.9,0.00020547,2]
[371532008,1752339065616,-538.24,0.00020547,2]
[371532021,1752339065733,-658.41,0.00020547,2]
[371532023,1752339065743,-316.74,0.00020547,2]
[371532025,1752339065753,-460.0,0.00020547,2]
[371532027,1752339065763,-460.0,0.00020547,2]
[371532029,1752339065773,-460.0,0.00020547,2]
[371532031,1752339065783,-849.11,0.00020547,2]
[371532033,1752339065792,-460.0,0.00020547,2]
[371532035,1752339065802,-460.0,0.00020547,2]
[371532037,1752339065812,-1149.94,0.00020547,2]
[371532038,1752339065821,-460.0,0.00020547,2]
[371532039,1752339065830,-2034.99919285,0.00020555,3]
[371532040,1752339065839,-2118.74119034,0.00020669,2]
[371532041,1752339065848,-585.52,0.00020792,2]
[371532042,1752339065857,-2034.99919285,0.00020797,4]
[371532043,1752339065866,-500.0,0.00020814,2]
[371532044,1752339065875,-468.36,0.00020821,2]
[371532045,1752339065884,-460.0,0.00020821,2]
[371532046,1752339065893,-460.0,0.00020821,2]
[371532047,1752339065902,-460.0,0.00020821,2]
[371532048,1752339065911,-550.87,0.00020821,2]
[371532049,1752339065920,-646.89,0.00020821,2]
[371532050,1752339065929,-573.66,0.00020821,2]
[371532051,1752339065938,-635.22,0.00020821,2]
[371532052,1752339065947,-460.0,0.00020821,2]
[371532053,1752339065956,-460.0,0.00020821,2]
[371532054,1752339065965,-623.67,0.00020821,2]
[371532055,1752339065974,-5412.1,0.00020821,2]
[371532056,1752339065984,-683.41,0.00020821,2]
[371532057,1752339065994,-460.0,0.00020821,2]
[371532058,1752339066003,-1187.86,0.00020821,2]
[371532060,1752339066013,-474.67,0.00020821,2]
[371532063,1752339066025,-1123.48,0.00020821,2]
[371532064,1752339066035,-2621.56,0.00020821,2]
[371532066,1752339066044,-682.03,0.00020821,2]
[371532068,1752339066054,-1297.92,0.00020821,2]
[371532070,1752339066065,-1030.17,0.00020821,2]
[371532072,1752339066074,-431.72,0.00020821,2]
[371532074,1752339066083,-460.0,0.00020821,2]
[371532076,1752339066093,-1957.07,0.00020821,2]
[371532078,1752339066102,-1236.38,0.00020821,2]
[371532080,1752339066112,-463.53,0.00020821,2]
[371532082,1752339066121,-569.09,0.00020821,2]
[371532084,1752339066131,-460.0,0.00020821,2]
[371532087,1752339066141,-539.54,0.00020821,2]
[371532089,1752339066151,-461.54,0.00020821,2]
[371532091,1752339066160,-460.0,0.00020821,2]
[371532093,1752339066169,-460.0,0.00020821,2]
[371532095,1752339066178,-594.72,0.00020821,2]
[371532097,1752339066187,-1010.33,0.00020821,2]
[371532099,1752339066197,-460.0,0.00020821,2]
[371532101,1752339066207,-460.0,0.00020821,2]
[371532103,1752339066216,-2088.38,0.00020821,2]
[371532105,1752339066227,-2151.05,0.00020821,2]
[371532107,1752339066236,-460.0,0.00020821,2]
[371532109,1752339066246,-280.81398059,0.00020821,2]
[371532111,1752339066256,-3488.55,0.00020821,2]
[371532113,1752339066265,-2850.9,0.00020821,2]
[371532115,1752339066276,-538.24,0.00020821,2]
[371532117,1752339066285,-658.41,0.00020821,2]
[371532119,1752339066296,-460.0,0.00020821,2]
[371532121,1752339066306,-460.0,0.00020821,2]
[371532123,1752339066316,-849.11,0.00020821,2]
[371532125,1752339066325,-460.0,0.00020821,2]
[371532127,1752339066335,-353.71,0.00020821,2]
[371532129,1752339066344,-1149.94,0.00020821,2]
[371532131,1752339066353,-460.0,0.00020821,2]
[371532133,1752339066365,-1000.0,0.00020872,2]
[371532135,1752339066375,-486.29,0.000209,2]
[371532137,1752339066385,-4162.17,0.000209,2]
[371532139,1752339066395,-1000.0,0.00020902,2]
[371532141,1752339066405,-1000.0,0.00020902,2]
[371532143,1752339066415,-500.0,0.00020902,2]
[371532146,1752339066425,-1001.22281008,0.00020902,2]
[371532148,1752339066434,-151.0,0.00020947,2]
[371532150,1752339066444,-151.0,0.00020947,2]
[371532152,1752339066453,-151.0,0.00020947,2]
[371532154,1752339066462,-151.0,0.00020947,2]
[371532156,1752339066473,-151.0,0.00020947,2]
[371532158,1752339066483,-5000.0,0.00020947,2]
[371532160,1752339066493,-2034.99919285,0.00021038,4]
[371532162,1752339066502,-621.13190756,0.00021087,2]
[371532164,1752339066511,-468.36,0.00021095,2]
[371532166,1752339066520,-460.0,0.00021095,2]
[371532168,1752339066530,-460.0,0.00021095,2]
[371532170,1752339066540,-460.0,0.00021095,2]
[371532172,1752339066549,-550.87,0.00021095,2]
[371532174,1752339066558,-646.89,0.00021095,2]
[371532176,1752339066567,-573.66,0.00021095,2]
[371532178,1752339066577,-635.22,0.00021095,2]
[371532180,1752339066586,-460.0,0.00021095,2]
[371532182,1752339066595,-460.0,0.00021095,2]
[371532184,1752339066605,-623.67,0.00021095,2]
[371532186,1752339066615,-151.0,0.00021095,2]
[371532188,1752339066624,-151.0,0.00021095,2]
[371532190,1752339066633,-5412.1,0.00021095,2]
[371532192,1752339066642,-244.213992,0.00021095,2]
[371532194,1752339066652,-244.213992,0.00021095,2]
[371532196,1752339066663,-151.0,0.00021095,2]
[371532198,1752339066674,-683.41,0.00021095,2]
[371532200,1752339066683,-556.7,0.00021095,2]
[371532202,1752339066692,-1187.86,0.00021095,2]
[371532204,1752339066702,-1123.48,0.00021095,2]
[371532206,1752339066712,-2621.56,0.00021095,2]
[371532208,1752339066721,-682.03,0.00021095,2]